bitfinex-derivatives/quotes_ETHF0:USTF0_20240913
["timestamp","ask_amount","ask_price","bid_price","bid_amount"]
[1726269779304,2.20976599,2443.9,2443.8,0.40897]
[1726269779707,2.61871599,2443.9,2443.8,0.40897]
[1726269781106,2.20976599,2443.9,2443.8,0.40897]
[1726269781311,2.61871599,2443.9,2443.8,0.40897]
[1726269782314,2.20976599,2443.9,2443.8,0.40897]
[1726269783617,0.6077,2443.9,2443.8,0.40897]
[1726269784104,0.6077,2443.9,2443.8,1.48091195]
[1726269784912,2.13608798,2444.0,2443.9,0.40895]
[1726269785417,2.13608798,2444.0,2443.9,1.03775]
[1726269789111,1.60322317,2444.0,2443.9,2.11016484]
[1726269789513,2.20532317,2444.0,2443.9,2.11016484]
[1726269792928,2.20532317,2444.0,2443.9,1.07241484]
[1726269793226,2.20532317,2444.0,2443.8,2.01687293]
[1726269793227,1.01105,2444.0,2443.8,1.48137484]
[1726269793422,1.60304089,2443.9,2443.8,1.48137484]
[1726269793626,1.06870245,2443.9,2443.8,1.65109656]
[1726269793831,1.06870245,2443.9,2443.8,2.72341544]
[1726269794031,0.40895,2443.9,2443.8,2.31445544]
[1726269794231,0.40895,2443.9,2443.8,1.07231888]
[1726269794232,2.01199089,2443.9,2443.8,1.07231888]
[1726269794532,0.40897,2443.8,2443.7,4.28030965]
[1726269794727,1.60311269,2443.8,2443.7,5.52260228]
[1726269794924,2.01207269,2443.9,2443.7,4.85908263]
[1726269795124,2.01207269,2443.9,2443.8,1.07249324]
[1726269795326,2.01207269,2443.9,2443.7,4.68928324]
[1726269795518,0.40896,2443.9,2443.8,1.07249324]
[1726269795922,0.40896,2443.9,2443.7,4.68928324]
[1726269796136,1.6029043,2443.8,2443.7,4.68928324]
[1726269796333,1.6029043,2443.8,2443.7,5.93192363]
[1726269796642,1.6029043,2443.8,2443.7,6.4671709]
[1726269798525,1.6029043,2443.8,2443.7,6.0581809]
[1726269798719,2.54505798,2443.8,2443.7,4.28092786]
[1726269798929,2.54693109,2443.8,2443.7,3.2078]
[1726269800436,2.54693109,2443.8,2443.6,2.09632786]
[1726269800634,0.6065,2443.7,2443.6,2.09632786]
[1726269802236,2.20958419,2443.7,2443.6,2.09632786]
[1726269802833,0.6065,2443.7,2443.6,2.09632786]
[1726269803840,2.20950362,2443.7,2443.6,2.09632786]
[1726269805139,0.6065,2443.7,2443.6,2.09632786]
[1726269805440,0.6065,2443.7,2443.6,5.30412786]
[1726269805441,2.20937713,2443.7,2443.6,5.30412786]
[1726269806151,0.6065,2443.7,2443.6,5.30412786]
[1726269806638,0.6065,2443.7,2443.6,2.09632786]
[1726269806841,0.6065,2443.7,2443.6,5.30412786]
[1726269807235,0.6065,2443.7,2443.6,4.231]
[1726269807943,0.6065,2443.7,2443.6,1.0232]
[1726269808341,2.13796109,2443.8,2443.7,0.40899]
[1726269810340,2.13796109,2443.8,2443.7,3.61679]
[1726269812244,2.13796109,2443.8,2443.7,0.40899]
[1726269814047,2.54693109,2443.8,2443.6,4.23099]
[1726269814249,1.60224898,2443.7,2443.6,4.23099]
[1726269818733,1.60224898,2443.7,2443.6,5.70099]
[1726269818939,1.06813687,2443.8,2443.6,12.23386544]
[1726269819236,1.60224898,2443.9,2443.8,0.40897]
[1726269819237,1.06813687,2443.9,2443.8,0.40897]
[1726269819439,1.06813687,2443.9,2443.8,2.72294449]
[1726269819734,1.06813687,2443.9,2443.8,2.27602251]
[1726269819935,1.06813687,2443.9,2443.8,7.97593544]
[1726269820138,1.60224898,2444.1,2443.9,0.40895]
[1726269820139,1.06813687,2444.0,2443.9,0.40895]
[1726269820350,1.06813687,2444.0,2443.9,5.33423961]
[1726269820542,1.06813687,2444.0,2443.9,9.42623961]
[1726269820745,1.06813687,2444.0,2443.9,6.21843961]
[1726269821051,1.06813687,2444.0,2443.9,9.42623961]
[1726269823751,1.06813687,2444.0,2443.9,10.89623961]
[1726269824050,1.06813687,2444.1,2444.0,0.40894]
[1726269824248,1.06813687,2444.1,2444.0,1.05604]
[1726269825242,1.06813687,2444.1,2444.0,2.12802961]
[1726269827552,0.6202,2444.2,2444.1,0.40892]
[1726269827751,1.6879533,2444.2,2444.1,0.40892]
[1726269828063,0.6202,2444.2,2444.1,0.40892]
[1726269828351,1.68794946,2444.2,2444.1,0.40892]
[1726269829353,2.22244898,2444.2,2444.1,0.40892]
[1726269829755,0.6202,2444.2,2444.1,0.40892]
[1726269830555,8.19254898,2444.2,2443.9,4.68873961]
[1726269830855,1.0675099,2444.1,2443.9,4.68873961]
[1726269831050,0.6127,2444.0,2443.9,4.68873961]
[1726269831250,1.6802099,2444.0,2443.9,3.61675]
[1726269831645,1.6802099,2444.0,2443.8,1.07198961]
[1726269831858,2.3696099,2443.9,2443.8,0.40897]
[1726269832253,2.90434898,2443.9,2443.8,0.40897]
[1726269832449,2.90434898,2443.9,2443.7,0.40898]
[1726269832655,1.06745592,2443.8,2443.7,0.40898]
[1726269835357,2.36955592,2443.9,2443.7,0.40898]
[1726269835861,2.77850592,2443.9,2443.7,0.40898]
[1726269836052,1.06745592,2443.8,2443.7,0.40898]
[1726269838361,1.06745592,2443.8,2443.7,1.87898]
[1726269838560,1.06745592,2443.9,2443.8,0.40897]
[1726269838863,1.06745592,2443.9,2443.8,2.6696]
[1726269839059,1.60224898,2444.1,2443.8,2.6696]
[1726269839060,1.06745592,2444.1,2443.9,1.02239]
[1726269839366,1.06745592,2444.1,2444.0,5.08674]
[1726269840152,5.92435592,2444.4,2444.0,11.61774872]
[1726269840353,5.82935592,2444.4,2444.3,3.61669]
[1726269840854,0.6439,2444.4,2444.3,3.61669]
[1726269841055,0.6439,2444.4,2444.3,3.2078]
[1726269841268,0.6439,2444.4,2444.1,0.40892]
[1726269841453,1.06753262,2444.2,2444.1,0.40892]
[1726269842062,0.6519,2444.3,2444.1,2.11692488]
[1726269842063,1.71943262,2444.3,2444.1,2.11692488]
[1726269842261,1.71943262,2444.3,2444.1,1.04572]
[1726269842462,1.71943262,2444.3,2444.2,0.4089]
[1726269843169,1.71943262,2444.3,2444.2,3.6167]
[1726269843365,1.71943262,2444.3,2444.2,3.2078]
[1726269846161,0.6519,2444.3,2444.2,3.2078]
[1726269846557,1.06753262,2444.4,2444.2,3.6167]
[1726269846773,0.6615,2444.3,2444.2,3.6167]
[1726269846963,0.6615,2444.3,2444.2,4.2193]
[1726269847966,1.06753262,2444.4,2444.3,0.40889]
[1726269848357,2.98433262,2444.5,2444.4,0.40887]
[1726269849360,3.51809894,2444.5,2444.4,0.40887]
[1726269850468,2.98344305,2444.5,2444.4,0.40887]
[1726269851070,1.9168,2444.5,2444.4,0.40887]
[1726269852464,0.6615,2444.5,2444.4,0.40887]
[1726269854970,0.6615,2444.5,2444.3,0.40887]
[1726269854971,1.72814305,2444.5,2444.3,0.40887]
[1726269855164,1.2821,2444.4,2444.3,0.40889]
[1726269856162,1.2821,2444.4,2444.2,3.8104]
[1726269856163,1.69097,2444.4,2444.2,3.2078]
[1726269856368,2.34874305,2444.4,2444.2,3.61669]
[1726269856569,2.75761305,2444.4,2444.2,3.61669]
[1726269859368,2.75761305,2444.4,2444.3,3.2078]
[1726269859874,2.75761305,2444.4,2444.0,1.07120488]
[1726269859875,5.3733,2444.4,2444.0,3.2078]
[1726269860177,0.40892,2444.1,2444.0,3.2078]
[1726269860777,1.07122,2444.1,2444.0,3.2078]
[1726269861275,2.6703861,2444.1,2444.0,3.2078]
[1726269861474,2.6703861,2444.1,2443.8,0.40896]
[1726269861475,6.3526661,2444.1,2443.8,0.40896]
[1726269861678,2.73692743,2444.0,2443.8,0.40896]
[1726269861864,1.47553743,2443.9,2443.7,3.61677]
[1726269863374,1.06658743,2443.8,2443.7,3.61677]
[1726269865985,1.47555743,2443.8,2443.7,3.2078]
[1726269870284,2.13365743,2443.8,2443.7,3.2078]
[1726269870877,0.409,2443.6,2443.5,0.40901]
[1726269871581,1.6689,2443.6,2443.5,0.40901]
[1726269871781,1.2599,2443.6,2443.5,0.40901]
[1726269873379,4.20522798,2443.6,2443.4,0.40903]
[1726269873576,0.6407,2443.5,2443.4,0.40903]
[1726269873781,1.70701798,2443.5,2443.4,0.40903]
[1726269873976,0.6407,2443.5,2443.4,0.40903]
[1726269874181,1.04972,2443.5,2443.4,0.40903]
[1726269874376,0.6407,2443.5,2443.4,0.40903]
[1726269876480,0.6407,2443.5,2443.3,3.61684]
[1726269876975,0.6407,2443.5,2443.4,0.40904]
[1726269878283,0.6407,2443.5,2443.4,1.03414]
[1726269881584,0.6407,2443.5,2443.4,4.24194]
[1726269882179,0.6407,2443.5,2443.4,3.2078]
[1726269882687,0.6407,2443.5,2443.4,3.61684]
[1726269885284,0.6407,2443.5,2443.4,3.2078]
[1726269885285,1.04972,2443.5,2443.4,3.2078]
[1726269885987,1.04972,2443.5,2443.4,3.61684]
[1726269886582,1.04972,2443.5,2443.4,3.2078]
[1726269888383,1.04972,2443.5,2443.4,3.61684]
[1726269889590,1.04972,2443.5,2443.4,3.2078]
[1726269890076,1.04972,2443.5,2443.4,3.61684]
[1726269890486,1.04972,2443.5,2443.4,3.2078]
[1726269898401,1.04972,2443.5,2443.4,3.8421]
[1726269900205,0.40902,2443.5,2443.4,3.8421]
[1726269900601,1.47533798,2443.5,2443.4,3.8421]
[1726269903505,0.40902,2443.5,2443.4,3.8421]
[1726269904410,2.0081861,2443.5,2443.4,3.2078]
[1726269905611,7.5709861,2443.5,2443.4,3.2078]
[1726269906114,8.5935361,2443.5,2443.4,3.2078]
[1726269906314,6.99437,2443.5,2443.4,3.2078]
[1726269908411,9.13233109,2443.5,2443.4,3.2078]
[1726269909707,6.99437,2443.5,2443.4,3.2078]
[1726269910113,9.66447998,2443.5,2443.4,3.2078]
[1726269913821,0.40904,2443.4,2443.3,3.8623]
[1726269914016,2.54444509,2443.4,2443.3,3.8623]
[1726269915318,2.54444509,2443.4,2443.3,3.2078]
[1726269916316,3.56704509,2443.4,2443.3,3.2078]
[1726269916712,2.73724,2443.4,2443.3,3.2078]
[1726269920126,0.40905,2443.3,2443.2,1.2605]
[1726269920422,3.16247737,2443.3,2443.2,4.4683]
[1726269921524,3.16247737,2443.3,2443.2,1.2605]
[1726269921717,3.16247737,2443.3,2443.2,4.4683]
[1726269923126,3.16247737,2443.3,2443.2,1.2605]
[1726269923429,3.16247737,2443.3,2443.2,4.4683]
[1726269925024,3.16247737,2443.3,2443.2,1.2605]
[1726269925229,3.16247737,2443.3,2443.2,4.4683]
[1726269926126,3.16247737,2443.3,2443.2,1.2605]
[1726269926425,3.16247737,2443.3,2443.2,4.4683]
[1726269928926,3.16247737,2443.3,2443.2,3.2078]
[1726269931035,0.40907,2443.2,2443.1,2.26008]
[1726269931333,0.40907,2443.2,2443.1,5.46788]
[1726269931334,2.00958869,2443.2,2443.1,5.46788]
[1726269931530,0.40907,2443.2,2443.1,5.46788]
[1726269933223,2.75342737,2443.3,2443.1,5.46788]
[1726269933224,3.16248737,2443.3,2443.2,0.40907]
[1726269933425,0.40907,2443.2,2443.1,5.46787]
[1726269933636,2.54283525,2443.2,2443.1,5.46787]
[1726269940126,2.54283525,2443.2,2443.1,2.26007]
[1726269940331,2.54283525,2443.2,2443.1,5.46787]
[1726269942242,2.54283525,2443.2,2443.1,2.26007]
[1726269945034,0.40907,2443.2,2443.1,2.26007]
[1726269945235,2.54283525,2443.2,2443.1,2.26007]
[1726269946441,2.13376525,2443.2,2443.1,2.26007]
[1726269947531,3.1615933,2443.3,2443.2,0.40907]
[1726269947936,2.1338333,2443.3,2443.2,0.40907]
[1726269948141,1.6005368,2443.3,2443.2,2.7230871]
[1726269948340,1.06707892,2443.3,2443.2,7.35259515]
[1726269949042,1.06707892,2443.3,2443.2,3.25979515]
[1726269949832,1.6005368,2443.4,2443.3,0.40905]
[1726269950038,1.6005368,2443.4,2443.3,1.48202062]
[1726269950434,2.1338333,2443.5,2443.4,0.40904]
[1726269952435,2.5428633,2443.5,2443.3,4.68982062]
[1726269952635,2.5428633,2443.5,2443.3,0.40905]
[1726269952636,2.7903333,2443.4,2443.3,0.40905]
[1726269952943,0.6565,2443.4,2443.3,0.40905]
[1726269953137,2.7903333,2443.4,2443.3,0.40905]
[1726269954144,3.4390333,2443.4,2443.3,0.40905]
[1726269955446,1.71424,2443.4,2443.3,0.40905]
[1726269956344,3.8480733,2443.4,2443.3,0.40905]
[1726269958648,1.60057279,2443.4,2443.3,4.68982062]
[1726269959546,2.1338333,2443.5,2443.4,0.40904]
[1726269959942,2.1338333,2443.5,2443.4,1.03124]
[1726269960452,2.5428533,2443.5,2443.4,1.03124]
[1726269961052,2.5428533,2443.5,2443.4,0.40904]
[1726269964040,3.1450433,2443.6,2443.5,0.40902]
[1726269964247,2.7360333,2443.6,2443.5,0.40902]
[1726269964646,3.1450333,2443.6,2443.5,0.40902]
[1726269964952,3.1450333,2443.6,2443.4,0.40902]
[1726269966550,0.40902,2443.5,2443.4,0.40902]
[1726269966749,0.40902,2443.5,2443.3,4.68981062]
[1726269966948,2.85799909,2443.4,2443.3,3.61684]
[1726269970660,3.26703909,2443.4,2443.3,3.2078]
[1726269971151,3.26703909,2443.4,2443.3,3.61685]
[1726269971352,1.66704,2443.4,2443.3,3.61685]
[1726269971855,3.26544918,2443.4,2443.3,3.2078]
[1726269972159,3.26540022,2443.4,2443.3,3.2078]
[1726269972365,1.66704,2443.4,2443.3,3.2078]
[1726269973055,7.8936733,2443.4,2443.0,1.07297062]
[1726269973257,0.4091,2443.0,2442.9,4.28077062]
[1726269973451,0.4091,2443.0,2442.9,3.2078]
[1726269973452,2.00680188,2443.0,2442.9,3.2078]
[1726269973763,3.90420188,2443.0,2442.9,3.2078]
[1726269980560,3.90222857,2443.0,2442.9,3.2078]
[1726269980761,3.90226037,2443.0,2442.9,3.2078]
[1726269981259,2.3065,2443.0,2442.9,3.2078]
[1726269981465,3.90216927,2443.0,2442.9,3.2078]
[1726269986366,0.40912,2442.9,2442.8,3.61693]
[1726269986565,1.47300952,2442.9,2442.8,3.61693]
[1726269987356,1.47300952,2442.9,2442.8,3.61694]
[1726269987762,0.40912,2442.9,2442.8,3.61694]
[1726269988160,1.47296882,2442.9,2442.8,3.61694]
[1726269989963,1.47296882,2442.9,2442.8,3.2078]
[1726269990165,1.47296882,2442.9,2442.8,3.61694]
[1726269997976,1.47296882,2442.9,2442.8,3.2078]
[1726269999875,1.47296882,2442.9,2442.8,3.61694]
[1726270001676,1.47296882,2442.9,2442.8,3.2078]
[1726270002373,0.40919,2442.6,2442.5,0.40918]
[1726270002577,1.87919,2442.6,2442.5,0.40918]
[1726270002779,0.40919,2442.5,2442.4,1.0258]
[1726270003070,1.05879,2442.5,2442.4,1.0258]
[1726270006581,0.6496,2442.5,2442.4,4.2336]
[1726270006982,1.05879,2442.5,2442.4,3.2078]
[1726270007585,1.05879,2442.5,2442.4,0.4092]
[1726270008182,0.4092,2442.4,2442.3,1.00881]
[1726270008382,0.6496,2442.5,2442.3,1.00881]
[1726270008685,1.47,2442.4,2442.3,1.00881]
[1726270013086,0.6496,2442.5,2442.3,1.00881]
[1726270013290,3.14815134,2442.6,2442.4,3.617]
[1726270013291,2.53365134,2442.6,2442.4,3.617]
[1726270013789,2.94283134,2442.6,2442.4,3.61699]
[1726270013990,2.94283134,2442.6,2442.5,0.6342]
[1726270014186,1.47283134,2442.6,2442.5,1.04339]
[1726270014388,1.06365134,2442.7,2442.6,0.40917]
[1726270014683,1.06365134,2442.7,2442.6,1.02787]
[1726270014884,1.47279134,2442.8,2442.6,1.02787]
[1726270015389,1.06365134,2442.7,2442.6,1.02787]
[1726270017287,2.00480927,2442.8,2442.6,1.02787]
[1726270017586,1.06439591,2442.7,2442.6,1.02787]
[1726270017789,2.53439591,2442.7,2442.6,1.02787]
[1726270017989,1.47,2442.7,2442.6,0.40917]
[1726270018291,3.06566927,2442.7,2442.6,0.40917]
[1726270021580,1.59566927,2442.7,2442.6,0.40917]
[1726270021785,1.06485871,2442.7,2442.6,1.03997]
[1726270021991,3.06566927,2442.8,2442.7,0.40915]
[1726270021992,3.47480927,2442.8,2442.7,0.40915]
[1726270022588,3.06566927,2442.8,2442.7,0.40915]
[1726270022793,1.47,2442.8,2442.7,0.40915]
[1726270022995,1.87915,2442.8,2442.6,1.03996]
[1726270023292,1.59745688,2442.7,2442.6,1.03996]
[1726270026289,0.40917,2442.6,2442.5,4.28077062]
[1726270026488,3.54314753,2442.6,2442.5,3.2078]
[1726270026793,4.07562688,2442.6,2442.5,3.2078]
[1726270029291,6.1634,2442.6,2442.3,1.48218062]
[1726270029592,6.1634,2442.6,2442.2,1.48220062]
[1726270029593,0.40922,2442.3,2442.2,1.48220062]
[1726270029802,1.06497451,2442.3,2442.2,1.48220062]
[1726270030099,1.66827451,2442.3,2442.2,1.48220062]
[1726270030791,1.66827451,2442.3,2442.2,0.40923]
[1726270032000,1.66827451,2442.3,2442.2,1.48220062]
[1726270032488,1.66827451,2442.3,2442.2,0.40923]
[1726270034002,2.07749451,2442.3,2442.2,0.40923]
[1726270034202,1.66827451,2442.3,2442.2,0.40923]
[1726270040408,2.07749451,2442.3,2442.2,0.40923]
[1726270040804,2.07749451,2442.3,2442.1,1.69867062]
[1726270040805,2.07749451,2442.3,2442.1,2.10791062]
[1726270040995,1.87924,2442.2,2442.1,1.69867062]
[1726270042504,1.87924,2442.2,2442.1,2.10792062]
[1726270042706,2.94421451,2442.2,2442.1,1.07297062]
[1726270042910,0.40925,2442.1,2442.0,4.89577062]
[1726270043107,1.47308792,2442.1,2442.0,5.30504062]
[1726270043312,1.47308792,2442.1,2441.9,1.2108]
[1726270043313,0.40927,2442.0,2441.9,1.07297062]
[1726270043509,3.56248717,2442.0,2441.9,1.07297062]
[1726270043806,3.56248717,2442.0,2441.8,2.08966062]
[1726270044206,0.40929,2441.9,2441.8,1.68037062]
[1726270044404,0.40929,2441.9,2441.8,1.67984291]
[1726270044609,0.40929,2441.9,2441.8,2.92191099]
[1726270044802,3.56249717,2442.0,2441.8,3.33121099]
[1726270044997,3.56249717,2442.0,2441.9,1.07244291]
[1726270045211,3.56249717,2442.0,2441.8,2.08914291]
[1726270045712,3.15321717,2442.0,2441.9,0.40929]
[1726270045906,2.53371717,2442.0,2441.9,1.67899]
[1726270046804,1.47,2442.0,2441.9,2.75143291]
[1726270047006,1.71131717,2442.2,2442.1,0.40925]
[1726270047303,1.71113603,2442.2,2442.1,3.61705]
[1726270047503,1.05684,2442.2,2442.1,3.61705]
[1726270047810,1.05684,2442.2,2442.1,3.2078]
[1726270047811,2.65430217,2442.2,2442.1,3.2078]
[1726270048201,2.65430217,2442.2,2442.1,3.8259]
[1726270048613,2.65430217,2442.2,2442.1,4.23515]
[1726270048813,2.24506217,2442.2,2442.1,4.23515]
[1726270049115,2.65430217,2442.2,2442.1,3.8259]
[1726270049508,2.65430217,2442.2,2442.1,4.23515]
[1726270050109,2.65430217,2442.2,2442.1,3.8259]
[1726270050714,2.65430217,2442.2,2442.0,0.40926]
[1726270050915,2.53392298,2442.1,2442.0,0.40926]
[1726270051606,2.94317298,2442.1,2442.0,0.40926]
[1726270051812,3.19292298,2442.1,2442.0,0.40926]
[1726270052611,2.129,2442.1,2442.0,0.40926]
[1726270052812,3.19244431,2442.1,2442.0,0.40926]
[1726270053012,3.60169431,2442.1,2442.0,0.40926]
[1726270054727,3.60169431,2442.1,2441.9,1.2697]
[1726270054728,0.40927,2442.0,2441.9,1.2697]
[1726270055024,3.19244431,2442.1,2441.9,1.67899]
[1726270055213,1.06344431,2442.0,2441.9,1.67899]
[1726270055414,3.60171431,2442.1,2441.9,0.40929]
[1726270056126,3.60171431,2442.1,2442.0,0.40927]
[1726270057113,0.40927,2442.0,2441.8,3.61709]
[1726270057514,0.6371,2441.9,2441.8,3.61709]
[1726270057921,0.6371,2441.9,2441.8,7.71229]
[1726270058811,0.6371,2441.9,2441.8,3.61709]
[1726270059222,2.1071,2441.9,2441.8,3.61709]
[1726270062728,2.51639,2441.9,2441.8,3.61709]
[1726270063024,2.1071,2441.9,2441.8,3.61709]
[1726270065626,6.61159,2441.9,2441.8,3.2078]
[1726270065927,6.61159,2441.9,2441.8,3.6171]
[1726270069123,6.2023,2441.9,2441.7,0.40931]
[1726270069428,2.5118,2441.8,2441.7,0.40931]
[1726270070127,0.40934,2441.6,2441.5,4.28001508]
[1726270070426,2.90269,2441.6,2441.5,3.2078]
[1726270070619,7.03878431,2441.6,2441.5,3.2078]
[1726270070822,7.69058431,2441.6,2441.5,3.2078]
[1726270071122,3.59458431,2441.6,2441.5,3.2078]
[1726270071319,7.69058431,2441.6,2441.5,3.2078]
[1726270071520,9.24795217,2441.6,2441.5,3.2078]
[1726270072813,15.24795217,2441.6,2441.5,3.2078]
[1726270073217,0.4094,2441.3,2441.1,1.48162508]
[1726270073519,2.1124,2441.2,2441.1,0.40941]
[1726270077834,2.5218,2441.2,2441.1,0.40941]
[1726270078035,2.1124,2441.2,2441.1,0.40941]
[1726270078435,2.1124,2441.2,2441.1,1.60881]
[1726270082332,2.1124,2441.2,2441.1,0.40941]
[1726270082535,2.5218,2441.2,2441.1,0.40941]
[1726270082733,0.40944,2441.0,2440.7,5.1335]
[1726270082926,0.40944,2441.0,2440.8,0.40947]
[1726270083233,1.47,2441.1,2440.8,0.40947]
[1726270083234,2.0989,2440.9,2440.8,0.40947]
[1726270083827,1.47,2441.1,2441.0,0.40944]
[1726270084044,2.0989,2441.1,2441.0,0.40944]
[1726270084336,2.0989,2441.1,2440.9,0.40945]
[1726270084531,2.50833,2441.1,2440.9,0.40945]
[1726270085431,2.0989,2441.1,2440.9,0.40945]
[1726270085635,0.40944,2441.0,2440.7,5.1335]
[1726270085833,0.40944,2441.0,2440.8,0.40946]
[1726270085834,1.02754,2441.0,2440.8,0.40946]
[1726270086037,1.02754,2441.0,2440.8,0.40947]
[1726270086243,1.02754,2441.0,2440.7,5.1335]
[1726270086244,0.40947,2440.8,2440.7,3.2078]
[1726270086437,1.87947,2440.8,2440.7,3.2078]
[1726270086631,2.48227,2440.8,2440.7,3.2078]
[1726270086836,2.0728,2440.8,2440.7,3.61729]
[1726270087241,2.0728,2440.8,2440.7,3.2078]
[1726270088340,6.57907,2440.8,2440.7,3.2078]
[1726270089847,2.48227,2440.8,2440.7,3.2078]
[1726270090036,2.48227,2440.8,2440.7,3.61729]
[1726270090941,2.48227,2440.8,2440.7,3.2078]
[1726270092637,2.48227,2440.8,2440.7,3.61729]
[1726270092945,2.48227,2440.8,2440.7,3.2078]
[1726270093542,2.48227,2440.8,2440.7,4.24709]
[1726270093741,2.48227,2440.8,2440.7,3.8376]
[1726270095244,1.87946,2440.9,2440.7,4.24708]
[1726270095444,1.87946,2440.9,2440.8,1.06077]
[1726270095744,1.87946,2440.9,2440.8,1.2524]
[1726270097149,1.87946,2440.9,2440.8,1.66187]
[1726270097648,1.87946,2440.9,2440.8,1.2524]
[1726270098155,1.47,2440.9,2440.8,1.66187]
[1726270098643,1.02353,2441.2,2440.9,0.40945]
[1726270098841,1.87945,2441.0,2440.8,1.2524]
[1726270099145,1.87945,2441.0,2440.8,1.66186]
[1726270099451,1.87945,2441.0,2440.9,0.40945]
[1726270100751,1.47,2441.0,2440.9,0.40945]
[1726270101051,2.50523,2441.1,2440.9,0.40944]
[1726270101246,0.40944,2441.0,2440.9,0.40944]
[1726270101555,1.06223457,2441.4,2440.8,1.2524]
[1726270101853,1.87942,2441.2,2441.0,0.40943]
[1726270102053,1.47,2441.0,2440.9,0.40945]
[1726270103243,2.077,2441.0,2440.9,0.40945]
[1726270103657,2.48644,2441.0,2440.9,0.40945]
[1726270103959,3.10234,2441.0,2440.9,0.40945]
[1726270104248,0.40946,2440.9,2440.7,3.2078]
[1726270104444,1.47,2440.8,2440.7,3.61728]
[1726270105246,1.87947,2440.8,2440.7,3.61728]
[1726270105445,1.02357,2441.1,2440.7,3.61728]
[1726270105446,1.02357,2441.1,2440.8,0.40946]
[1726270105646,1.87945,2440.9,2440.8,0.6273]
[1726270105851,1.87945,2440.9,2440.8,1.03677]
[1726270106558,1.87945,2440.9,2440.8,0.6273]
[1726270106751,1.67685,2441.0,2440.9,0.40945]
[1726270106949,3.14685,2441.0,2440.9,0.40945]
[1726270107649,3.14685,2441.0,2440.8,0.6273]
[1726270107650,0.40945,2440.9,2440.8,0.40946]
[1726270110857,0.40947,2440.8,2440.7,3.61728]
[1726270111054,1.87947,2440.8,2440.7,3.61728]
[1726270111248,1.47,2440.8,2440.7,3.61728]
[1726270111653,1.87947,2440.8,2440.7,3.61728]
[1726270115653,6.99996,2440.8,2440.7,3.2078]
[1726270115854,3.47693217,2440.8,2440.7,3.2078]
[1726270116059,2.94173531,2440.8,2440.7,3.2078]
[1726270116860,3.47693217,2440.8,2440.7,3.2078]
[1726270117259,1.47,2440.8,2440.7,3.61729]
[1726270117459,1.87947,2440.8,2440.7,4.25829]
[1726270117658,3.47693217,2440.8,2440.7,4.25829]
[1726270117853,1.87947,2440.8,2440.7,4.25829]
[1726270118458,3.47693217,2440.8,2440.7,3.61729]
[1726270118862,3.47693217,2440.8,2440.7,3.2078]
[1726270119056,3.47693217,2440.8,2440.7,3.61729]
[1726270119463,3.47693217,2440.8,2440.7,3.2078]
[1726270119963,4.10943217,2440.8,2440.7,3.2078]
[1726270120562,4.10943217,2440.8,2440.7,3.20667349]
[1726270121677,2.51197,2440.8,2440.7,3.20667349]
[1726270123882,6.60877,2440.8,2440.7,3.20667349]
[1726270124379,7.63246,2440.8,2440.7,3.20667349]
[1726270124578,6.60877,2440.8,2440.7,3.20667349]
[1726270125369,8.73903918,2440.8,2440.7,3.20667349]
[1726270125782,6.63653918,2440.8,2440.7,3.20667349]
[1726270125982,8.10653918,2440.8,2440.7,3.20667349]
[1726270126682,8.10653918,2440.8,2440.7,3.61616349]
[1726270126881,8.10653918,2440.8,2440.7,3.20667349]
[1726270127178,4.00973918,2440.8,2440.7,3.20667349]
[1726270127570,4.00973918,2440.8,2440.7,3.61616349]
[1726270127571,2.13026918,2440.8,2440.7,3.61616349]
[1726270127771,1.59609245,2440.8,2440.7,3.61616349]
[1726270128080,1.59609245,2440.9,2440.8,0.40947]
[1726270128273,4.00970918,2441.0,2440.8,1.04647]
[1726270128478,4.00970918,2441.0,2440.9,0.40945]
[1726270128680,2.13026918,2441.1,2441.0,0.40944]
[1726270128983,2.13026918,2441.1,2441.0,3.61724]
[1726270129379,2.13026918,2441.1,2441.0,13.71404]
[1726270129684,2.67010998,2441.3,2441.1,0.40942]
[1726270129685,1.06452491,2441.2,2441.1,0.40942]
[1726270129881,1.06452491,2441.3,2441.2,0.4094]
[1726270130085,2.53452491,2441.3,2441.2,6.38579466]
[1726270130272,2.53452491,2441.3,2441.2,6.21556792]
[1726270130473,2.53452491,2441.3,2441.2,5.80616792]
[1726270130686,2.53452491,2441.3,2441.2,4.733]
[1726270131081,2.53424142,2441.3,2441.2,4.733]
[1726270132084,2.53424142,2441.3,2441.2,5.1424]
[1726270132382,2.53424142,2441.3,2441.2,4.733]
[1726270133288,1.47,2441.3,2441.2,4.733]
[1726270133482,2.53424142,2441.3,2441.2,4.733]
[1726270133882,1.47,2441.3,2441.2,4.733]
[1726270135385,1.47,2441.3,2441.2,1.0464]
[1726270135574,1.47,2441.3,2441.2,0.637]
[1726270135781,2.53424142,2441.3,2441.2,0.637]
[1726270136182,1.47,2441.3,2441.2,0.637]
[1726270136391,2.53424142,2441.3,2441.2,0.637]
[1726270138793,2.53424142,2441.3,2441.1,0.6016]
[1726270138988,1.8794,2441.2,2441.1,0.6016]
[1726270139600,0.40942,2441.1,2441.0,3.8151]
[1726270144595,1.47366142,2441.1,2441.0,3.8151]
[1726270144989,1.47366142,2441.1,2441.0,0.6073]
[1726270145192,1.47366142,2441.1,2441.0,3.8151]
[1726270145696,1.47366142,2441.1,2441.0,3.2078]
[1726270145894,1.07082,2441.1,2441.0,3.2078]
[1726270146089,2.66752513,2441.1,2441.0,3.2078]
[1726270146491,7.78788513,2441.1,2441.0,3.2078]
[1726270146694,6.19118,2441.1,2441.0,3.2078]
[1726270147099,8.32144918,2441.1,2441.0,3.2078]
[1726270152006,0.40943,2440.8,2440.7,0.6242]
[1726270152198,1.87943,2440.8,2440.7,3.832]
[1726270153604,2.49853,2440.8,2440.7,3.832]
[1726270156912,1.47,2440.8,2440.7,4.24145]
[1726270164913,1.06304758,2441.0,2440.9,0.40941]
[1726270165101,3.13459783,2441.1,2441.0,0.4094]
[1726270165310,3.13459783,2441.1,2441.0,3.6172]